bitfinex-derivatives/quotes_ETHF0:USTF0_20260214
["timestamp","ask_amount","ask_price","bid_price","bid_amount"]
[1771081484089,40.8,2086.9,2085.8,1.57136996]
[1771081484090,19.585,2086.6,2085.8,1.57136996]
[1771081484489,1.56940148,2086.7,2085.8,1.57136996]
[1771081484891,1.57398348,2086.7,2085.8,1.57136996]
[1771081485898,0.004582,2086.7,2086.0,1.57136996]
[1771081486101,40.8,2086.9,2086.2,1.57136996]
[1771081486395,1.56940148,2087.1,2086.2,1.57136996]
[1771081486797,42.36940148,2087.1,2086.2,1.57136996]
[1771081487198,1.56940148,2087.0,2086.2,1.57136996]
[1771081488797,40.80387512,2087.1,2086.2,1.57136996]
[1771081489398,42.3732766,2087.1,2086.2,1.57136996]
[1771081490402,0.00387512,2087.1,2086.4,1.57136996]
[1771081490698,0.00387512,2087.1,2086.4,1.57484613]
[1771081490901,0.00387512,2087.1,2086.6,1.57136996]
[1771081491091,1.56940148,2087.4,2086.8,1.57136996]
[1771081491602,42.36940148,2087.4,2086.8,1.57136996]
[1771081492304,42.37462118,2087.4,2086.8,1.57136996]
[1771081492901,1.57462118,2087.4,2086.8,1.57136996]
[1771081493299,1.56940148,2087.3,2086.4,1.57484613]
[1771081497005,1.56940148,2087.3,2085.7,1.57136996]
[1771081497904,1.56940148,2087.3,2085.7,1.57755868]
[1771081498403,1.56940148,2087.3,2085.9,1.57136996]
[1771081499006,1.56940148,2087.1,2085.9,1.57136996]
[1771081499203,1.56940148,2087.1,2086.1,1.57136996]
[1771081506204,6.36916763,2087.0,2086.1,1.57136996]
[1771081506408,1.6786093,2086.9,2086.1,1.57136996]
[1771081510512,1.6786093,2086.9,2085.8,1.66292431]
[1771081510708,1.6786093,2086.7,2085.8,1.66292431]
[1771081510910,1.4305768,2086.3,2085.8,1.66292431]
[1771081511109,3.1091861,2086.3,2085.8,1.66292431]
[1771081511705,1.4305768,2086.3,2085.8,1.66292431]
[1771081511912,3.1091861,2086.5,2085.8,1.66292431]
[1771081512208,1.6786093,2086.4,2085.8,1.66292431]
[1771081514614,3.1091861,2086.5,2085.8,1.66292431]
[1771081516316,1.6786093,2086.6,2085.8,1.66292431]
[1771081516814,1.6786093,2086.4,2085.8,1.66292431]
[1771081520719,1.6786093,2086.2,2085.8,1.66292431]
[1771081520916,1.6786093,2086.2,2085.7,1.66911303]
[1771081521315,1.4305768,2086.3,2085.7,1.66911303]
[1771081521614,3.1091861,2086.3,2085.7,1.66911303]
[1771081521816,1.6786093,2086.2,2085.7,1.66911303]
[1771081524116,1.4305768,2086.1,2085.5,1.90275431]
[1771081524419,1.6786093,2086.5,2085.6,1.66292431]
[1771081524716,1.6786093,2086.5,2085.8,1.66292431]
[1771081525318,1.6786093,2086.5,2086.0,1.66292431]
[1771081526117,1.6786093,2086.3,2085.9,0.23978]
[1771081526319,1.6786093,2086.3,2085.9,1.90270431]
[1771081526516,1.6786093,2086.1,2085.6,1.66292431]
[1771081527521,1.6786093,2086.1,2085.6,1.66859582]
[1771081528523,1.6786093,2085.9,2085.5,1.66292431]
[1771081529627,1.68350008,2085.9,2085.5,1.66708323]
[1771081530027,1.68350008,2085.9,2085.0,1.66292431]
[1771081530527,1.68350008,2085.9,2085.2,1.66292431]
[1771081530925,1.68350008,2085.9,2085.2,1.66683847]
[1771081535230,1.68350008,2085.9,2085.2,0.00391416]
[1771081536636,1.68350008,2085.9,2084.7,1.57053633]
[1771081537535,1.68350008,2085.9,2084.7,1.57417206]
[1771081537736,1.68350008,2085.9,2084.9,1.57053633]
[1771081538430,1.68350008,2085.9,2085.1,1.57053633]
[1771081540331,1.68350008,2085.9,2085.3,1.57053633]
[1771081542935,1.68350008,2085.9,2085.0,1.54675634]
[1771081544344,1.68350008,2085.9,2085.2,1.54675634]
[1771081547033,1.68350008,2085.9,2085.1,0.23988]
[1771081547240,1.54184979,2085.7,2084.7,1.55039207]
[1771081547638,1.54184979,2085.5,2084.7,1.55039207]
[1771081550945,1.54184979,2085.3,2084.7,1.55039207]
[1771081552446,42.34184979,2085.6,2084.7,1.55039207]
[1771081552647,1.54184979,2085.6,2084.7,1.55039207]
[1771081552836,1.54184979,2085.6,2084.9,1.54675634]
[1771081553240,1.54184979,2085.8,2085.1,1.54675634]
[1771081553747,1.54184979,2085.6,2084.9,1.54675634]
[1771081554741,1.54184979,2085.6,2084.7,0.00363573]
[1771081554946,1.54184979,2085.6,2084.7,1.55039207]
[1771081559555,6.38331497,2085.5,2084.5,1.78669634]
[1771081559751,1.54184979,2085.3,2084.5,1.78669634]
[1771081560454,1.54184979,2085.3,2084.5,1.79049904]
[1771081562255,1.5269094,2085.5,2084.5,1.79049904]
[1771081570354,1.5269094,2085.5,2084.5,1.79967549]
[1771081575153,6.40435985,2085.4,2084.5,1.79967549]
[1771081575359,1.5269094,2085.3,2084.5,1.79967549]
[1771081575555,1.5269094,2085.3,2084.5,0.2437427]
[1771081575754,1.5269094,2085.1,2084.2,1.55593279]
[1771081576152,6.40849195,2085.0,2084.2,1.55593279]
[1771081576363,1.5269094,2084.9,2084.2,1.55593279]
[1771081576760,1.5269094,2084.9,2084.2,1.56111665]
[1771081577360,1.5269094,2085.0,2084.4,1.55593279]
[1771081578662,8.7579094,2085.3,2084.4,1.55593279]
[1771081578868,1.5269094,2085.2,2084.4,1.55593279]
[1771081579171,1.5269094,2085.2,2084.6,1.55593279]
[1771081583069,1.5269094,2085.5,2084.6,1.55593279]
[1771081583772,1.5269094,2085.5,2084.8,1.55593279]
[1771081588770,61.39690409,2085.8,2085.0,1.55593279]
[1771081588771,1.5269094,2085.7,2085.0,1.55593279]
[1771081589770,1.5269094,2085.7,2085.2,1.55593279]
[1771081593066,1.5269094,2085.7,2085.1,0.23988]
[1771081594871,1.5269094,2085.7,2084.8,1.56276348]
[1771081595272,1.5269094,2085.7,2084.6,1.80269348]
[1771081595473,1.48019728,2085.5,2084.6,1.80269348]
[1771081603579,1.48019728,2085.5,2084.6,0.23993]
[1771081603778,1.48019728,2085.5,2084.6,1.70816998]
[1771081609383,1.50007819,2085.4,2084.6,1.70816998]
[1771081620890,1.50007819,2085.7,2084.6,1.70816998]
[1771081623999,1.50007819,2085.7,2085.0,0.23988]
[1771081624197,1.50007819,2085.7,2085.3,1.44335737]
[1771081624397,1.50007819,2085.7,2085.2,1.68321737]
[1771081634495,1.46975332,2085.9,2085.2,1.68321737]
[1771081634807,0.00489078,2085.9,2085.2,1.68321737]
[1771081635096,0.00489078,2085.9,2085.5,1.44335737]
[1771081635799,1.46975332,2085.9,2085.5,1.44335737]
[1771081638188,0.00489078,2085.9,2085.5,1.44335737]
[1771081638398,1.46486254,2086.1,2085.7,1.44335737]
[1771081639099,1.46486254,2086.1,2085.6,0.23982]
[1771081639304,1.47101416,2086.1,2085.6,0.24344855]
[1771081639603,1.47101416,2086.1,2085.6,1.68680592]
[1771081640507,1.62e-06,2086.1,2085.6,3.11744029]
[1771081640705,1.46486254,2086.4,2085.7,1.44335737]
[1771081641499,1.46486254,2086.1,2085.6,0.24344855]
[1771081641698,1.46832928,2086.1,2085.6,0.24344855]
[1771081642403,1.46832928,2086.1,2085.6,1.68680592]
[1771081646903,1.46486254,2085.9,2085.2,1.44335737]
[1771081647807,1.46486254,2085.9,2085.2,1.44762899]
[1771081648409,1.46486254,2085.9,2085.4,1.44335737]
[1771081648608,1.46832928,2086.1,2085.4,1.44335737]
[1771081650313,1.46832928,2086.1,2085.6,1.44335737]
[1771081651315,0.00346674,2086.1,2085.6,1.44335737]
[1771081651718,1.42999031,2085.9,2085.2,1.52227056]
[1771081653020,1.42999031,2085.9,2085.4,1.51799894]
[1771081653221,1.43345705,2086.1,2085.4,1.51799894]
[1771081654012,1.43345705,2086.1,2085.6,1.51799894]
[1771081656617,0.00346674,2086.1,2085.6,1.51799894]
[1771081656818,1.43345705,2086.1,2085.6,1.51799894]
[1771081657019,0.00346674,2086.1,2085.8,1.51799894]
[1771081657218,1.43345705,2086.1,2085.7,0.23981]
[1771081657418,1.43345705,2086.1,2085.5,1.51799894]
[1771081658820,1.42999031,2085.9,2085.5,1.51799894]
[1771081660126,0.00346674,2086.1,2085.5,1.51799894]
[1771081660521,0.00346674,2086.1,2085.7,1.44556604]
[1771081662828,1.42435871,2086.3,2085.7,1.44556604]
[1771081664029,0.0040081,2086.3,2085.7,1.44556604]
[1771081664235,0.0040081,2086.3,2085.9,1.44556604]
[1771081664528,1e-08,2086.3,2085.9,1.44556604]
[1771081665825,1.43063437,2087.0,2085.9,1.44556604]
[1771081665826,19.46502291,2087.0,2085.9,1.44556604]
[1771081666031,1.42435871,2086.7,2085.9,1.44556604]
[1771081666231,1.42435871,2086.7,2086.1,1.44556604]
[1771081667030,1.4280771,2086.7,2086.1,1.44556604]
[1771081670133,0.00371839,2086.7,2086.1,1.44556604]
[1771081671136,1.4280771,2086.7,2086.1,1.44556604]
[1771081674938,0.00371839,2086.7,2086.3,1.44556604]
[1771081675341,1.42435871,2086.9,2086.5,1.44556604]
[1771081676435,1.42804673,2086.9,2086.5,1.44556604]
[1771081676934,1.42804673,2086.9,2086.4,0.23973]
[1771081677140,1.42804673,2086.9,2086.4,1.68529604]
[1771081677340,1.42804673,2086.9,2086.4,0.23973]
[1771081677736,1.42435871,2086.7,2086.0,1.44556604]
[1771081680940,1.42435871,2086.7,2086.2,1.44556604]
[1771081682241,1.4815363,2086.8,2086.2,1.44556604]
[1771081685939,0.00368802,2086.9,2086.2,1.44556604]
[1771081686146,0.00368802,2086.9,2086.4,1.38159578]
[1771081686539,1.48522432,2086.9,2086.4,1.38159578]
[1771081686739,0.00368802,2086.9,2086.4,1.38159578]
[1771081687345,0.00368802,2086.9,2086.6,1.38159578]
[1771081688641,20.7425363,2087.5,2086.8,1.38159578]
[1771081688846,1.4815363,2087.4,2086.8,1.38159578]
[1771081689540,1.48565109,2087.4,2086.8,1.38632648]
[1771081689947,1.4815363,2087.2,2086.7,0.23969]
[1771081690150,1.4815363,2087.2,2086.7,1.62128578]
[1771081690342,1.4815363,2087.2,2086.3,1.38159578]
[1771081690649,1.4815363,2087.1,2086.3,1.62133578]
[1771081691042,1.4815363,2087.2,2086.6,1.38159578]
[1771081691552,1.48565109,2087.4,2086.6,1.38159578]
[1771081694048,1.43063437,2087.3,2086.6,1.38159578]
[1771081694253,1.4815363,2087.2,2086.6,1.38159578]
[1771081695750,1.4815363,2087.2,2086.5,0.23971]
[1771081696051,1.4815363,2087.2,2086.5,1.62130578]
[1771081696442,1.4815363,2087.0,2086.5,1.62130578]
[1771081696951,1.4815363,2087.0,2086.5,0.23971]
[1771081697545,1.4815363,2087.0,2086.3,1.38701363]
[1771081697746,1.4815363,2087.0,2086.3,0.00541785]
[1771081698151,1.4815363,2087.0,2086.3,1.38701363]
[1771081698856,1.4815363,2087.0,2086.3,0.00541785]
[1771081703361,1.4815363,2087.0,2086.3,1.38701363]
[1771081704464,1.4815363,2087.2,2086.5,1.38159578]
[1771081704761,1.4815363,2087.2,2086.7,1.38159578]
[1771081707863,1.48565109,2087.4,2086.7,1.38159578]
[1771081709360,1.48565109,2087.4,2086.5,1.38159578]
[1771081709560,1.4815363,2087.3,2086.5,1.38159578]
[1771081710461,1.4815363,2086.6,2085.8,1.38159578]
[1771081710674,1.4815363,2086.5,2085.8,1.38159578]
[1771081710959,1.4815363,2086.5,2085.7,1.38159578]
[1771081711160,1.4815363,2086.3,2085.7,1.38159578]
[1771081711368,1.4815363,2086.3,2085.1,1.5065767]
[1771081711565,1.4815363,2086.3,2085.1,1.51204152]
[1771081721174,1.39824881,2086.1,2085.1,0.00546482]
[1771081721372,44.81636493,2086.4,2085.1,0.00546482]
[1771081721373,1.39824881,2085.9,2085.1,0.00546482]
[1771081721570,1.40414931,2085.9,2085.1,0.00546482]
[1771081722268,1.40414931,2085.9,2085.1,1.52046219]
[1771081730977,1.40414931,2085.9,2085.1,0.00546482]
[1771081731177,1.40414931,2085.9,2085.1,1.52046219]
[1771081738181,0.0059005,2085.9,2085.1,1.52046219]
[1771081738585,1.40414931,2085.9,2085.1,1.52046219]
[1771081739076,0.0059005,2085.9,2085.1,1.52046219]
[1771081740884,0.0059005,2085.9,2085.3,1.51499737]
[1771081742285,0.0059005,2085.9,2085.5,1.49079587]
[1771081742481,0.00380971,2085.9,2085.5,1.49079587]
[1771081744182,1.39511146,2085.9,2085.5,1.49079587]
[1771081744575,0.00380971,2085.9,2085.5,1.49079587]
[1771081747084,1.39511146,2085.9,2085.5,1.49079587]
[1771081747985,0.00380971,2085.9,2085.5,1.49079587]
[1771081749789,42.19130175,2086.4,2085.5,1.49079587]
[1771081750386,1.39130175,2086.3,2085.5,1.49079587]
[1771081750988,1.39552726,2086.3,2085.5,1.49079587]
[1771081755292,0.00422551,2086.3,2085.7,1.49079587]
[1771081755591,1.39552726,2086.3,2085.7,1.49079587]
[1771081758291,1.39552726,2086.3,2085.6,0.23982]
[1771081758497,1.39552726,2086.3,2085.6,1.73061587]
[1771081758993,1.39130175,2086.1,2085.6,1.73061587]
[1771081760696,1.39130175,2085.9,2085.4,1.49079587]
[1771081761703,1.39130175,2085.7,2085.2,1.49079587]
[1771081762399,1.39130175,2086.0,2085.2,1.49079587]
[1771081763102,1.39130175,2085.7,2085.2,1.49079587]
[1771081764198,1.43090274,2085.6,2085.1,1.73614069]
[1771081764396,1.39130175,2085.5,2085.1,1.73614069]
[1771081764592,1.39130175,2085.5,2085.1,1.49626069]
[1771081764997,1.39130175,2085.5,2084.7,1.49079587]
[1771081765398,1.39130175,2085.3,2084.7,1.49079587]
[1771081765796,1.39130175,2085.1,2084.7,0.37079587]
[1771081766002,1.39130175,2085.1,2084.7,0.00513926]
[1771081766200,1.39130175,2085.1,2084.6,1.24568501]
[1771081766802,1.39130175,2084.9,2084.1,1.24754535]
[1771081767204,1.39130175,2085.3,2084.3,1.2495746]
[1771081767505,42.19130175,2085.2,2084.3,1.2495746]
[1771081767802,1.39130175,2085.2,2084.5,1.25195872]
[1771081770107,1.39130175,2084.8,2084.3,1.25263967]
[1771081770303,1.39474814,2084.8,2084.3,1.25263967]
[1771081774211,1.39474814,2084.8,2084.2,0.23998]
[1771081774510,1.39474814,2084.8,2084.2,1.51605149]
[1771081774907,1.53127446,2084.6,2084.1,1.28083748]
[1771081775709,1.53127446,2084.6,2084.1,0.00378876]
[1771081775909,1.53127446,2084.4,2083.7,1.2786557]
[1771081776911,1.53127446,2084.4,2083.7,1.28361125]
[1771081780418,1.53127446,2084.4,2083.8,1.32171286]
[1771081785021,1.5207259,2084.2,2083.6,1.33096222]
[1771081786018,1.5207259,2084.2,2083.6,1.33502908]
[1771081793022,1.5207259,2084.4,2083.6,1.33502908]
[1771081793520,1.5207259,2084.7,2083.8,1.40544913]
[1771081794120,1.5207259,2084.7,2084.0,1.40544913]
[1771081795130,4.01636493,2085.3,2084.0,1.64544913]
[1771081795324,1.5207259,2085.7,2085.2,1.40544913]
[1771081796016,1.5207259,2085.7,2084.9,1.67079274]
[1771081796224,1.5207259,2085.4,2084.9,1.40943925]
[1771081796635,1.5207259,2085.2,2084.9,1.40943925]
[1771081796824,1.5207259,2085.2,2084.4,0.20677108]
[1771081797825,1.5207259,2085.2,2084.4,0.21051309]
[1771081799129,1.5207259,2085.3,2084.6,0.25063991]
[1771081799330,1.52451632,2085.7,2085.0,0.25063991]
[1771081800323,1.5207259,2085.3,2084.6,0.25184978]
[1771081801425,1.4287693,2085.5,2084.6,0.25184978]
[1771081801825,1.4287693,2084.9,2084.4,0.00374201]
[1771081802033,1.4287693,2085.2,2084.4,0.27816301]
[1771081804034,1.4287693,2085.2,2084.6,0.28166638]
[1771081804433,1.42707844,2085.6,2084.6,0.28166638]
[1771081812228,1.42707844,2085.6,2084.5,0.23994]
[1771081812633,1.42707844,2085.6,2084.5,0.55144672]
[1771081815939,1.41239177,2085.3,2084.0,0.40804043]
[1771081816237,1.41239177,2085.1,2084.0,0.40804043]
[1771081816837,1.41239177,2085.1,2084.0,0.41203846]
[1771081819543,1.41239177,2085.0,2084.0,0.41203846]
[1771081821841,1.41239177,2084.8,2084.0,0.41203846]
[1771081825247,1.41239177,2084.8,2084.0,0.00399803]
[1771081827244,40.8,2084.7,2084.0,0.00399803]
[1771081827447,1.41239177,2084.6,2084.0,0.00399803]
[1771081832058,1.41239177,2084.6,2083.5,0.4403496]
[1771081832263,1.49956432,2084.5,2083.5,0.4403496]
[1771081833065,1.49956432,2084.5,2083.5,0.44557284]
[1771081833357,1.49956432,2084.4,2083.5,0.44557284]
[1771081838270,1.49956432,2084.4,2083.5,0.00522324]
[1771081842272,1.49956432,2084.4,2083.5,0.40884608]
[1771081846277,1.49956432,2084.4,2083.6,0.24005]
[1771081846471,1.44502538,2084.6,2083.7,0.40081717]
[1771081850873,1.44502538,2084.4,2083.6,0.68806906]
[1771081852477,1.44502538,2084.4,2083.7,0.45099757]
[1771081860282,1.44502538,2084.4,2083.6,0.24005]
[1771081863985,1.44748263,2084.1,2083.1,0.46433862]
[1771081864875,1.45108717,2084.1,2083.1,0.47045445]
[1771081865078,1.45108717,2084.1,2083.2,0.70998273]
[1771081871687,1.45108717,2084.1,2083.1,0.95806473]
[1771081873291,1.45108717,2084.1,2083.1,0.71796473]
[1771081876693,1.43275893,2083.9,2083.1,0.00611583]
[1771081876889,1.44748263,2083.8,2082.6,0.94043411]
[1771081877097,1.44748263,2083.5,2082.7,0.70027411]
[1771081877997,1.44748263,2083.5,2082.7,0.70619027]
[1771081878197,1.44748263,2083.2,2082.3,0.70788627]
[1771081878398,1.44748263,2083.2,2081.6,0.71380243]
[1771081878600,1.44748263,2082.9,2081.6,0.71380243]
[1771081878900,1.44748263,2082.3,2081.0,0.71418439]
[1771081879196,1.45152559,2082.3,2081.0,0.71836517]
[1771081882592,1.45152559,2082.3,2081.2,0.77742665]
[1771081884690,1.45152559,2082.3,2081.4,0.79438332]
[1771081886495,1.45152559,2082.3,2081.6,0.8265815]
[1771081889499,0.00404296,2082.3,2081.8,0.83450037]
[1771081889699,1.44748263,2082.5,2081.8,0.83450037]
[1771081890603,0.00578242,2082.5,2082.0,0.8347505]
[1771081892203,0.00578242,2082.5,2082.2,0.86807521]
[1771081892505,1.44748263,2082.6,2082.2,0.86807521]
[1771081893404,1.57980993,2083.2,2082.6,0.87618765]
[1771081894408,1.58344297,2083.2,2082.6,0.88017477]
[1771081895612,1.58344297,2083.2,2082.8,0.86212265]
[1771081895908,1.57980993,2083.5,2082.8,0.86212265]
[1771081896709,1.58562511,2083.5,2082.8,0.86212265]
[1771081897308,1.58562511,2083.5,2082.7,1.8301717]
[1771081898905,1.58562511,2083.5,2082.7,0.24015]
[1771081899209,1.58562511,2083.5,2082.7,1.8301717]
[1771081899404,1.57980993,2083.3,2082.7,1.8301717]
[1771081903114,1.44397624,2083.2,2082.7,1.5900217]
[1771081904001,1.44397624,2083.2,2082.6,0.00398712]
[1771081904813,1.44397624,2083.2,2082.6,1.5278594]
[1771081908913,1.44397624,2083.2,2082.6,0.00398712]
[1771081909111,1.44397624,2083.0,2082.4,1.52387228]
[1771081909412,1.44397624,2083.0,2082.3,1.52387228]
[1771081910515,1.44397624,2083.0,2082.3,1.5287579]
[1771081914914,1.44397624,2083.0,2082.6,1.52387228]
[1771081915114,1.44397624,2083.1,2082.6,1.52387228]
[1771081918829,18.865,2083.2,2082.6,1.52387228]
[1771081919130,20.30897624,2083.2,2082.6,1.52387228]
[1771081919328,1.44397624,2083.1,2082.6,1.52387228]
[1771081921329,1.54472451,2083.3,2082.6,1.76403228]
[1771081921535,1.54472451,2083.4,2082.8,1.51442212]
[1771081922628,1.55053969,2083.5,2082.9,1.51442212]
[1771081925438,1.54472451,2083.7,2083.1,1.51442212]
[1771081926336,1.54472451,2083.9,2083.1,1.51442212]
[1771081926541,0.00510182,2083.7,2083.1,1.51442212]
[1771081927040,1.54982633,2083.7,2083.1,1.51442212]
[1771081933043,1.54982633,2083.7,2083.0,0.24012]
[1771081935448,1.54982633,2083.7,2083.1,1.51442212]
[1771081936648,0.00510182,2083.7,2083.1,1.51442212]
[1771081937551,1.54982633,2083.7,2083.1,1.51442212]
[1771081938754,0.00510182,2083.7,2083.3,1.51442212]
[1771081939252,1.54472451,2084.1,2083.3,1.51442212]
[1771081940253,1.54812826,2084.1,2083.3,1.51442212]
[1771081940750,1.54812826,2084.1,2083.5,1.51442212]
[1771081941555,1.54812826,2084.1,2083.4,1.75449212]
[1771081947460,1.54812826,2084.1,2083.4,0.24007]
[1771081949052,1.54812826,2084.1,2083.5,1.51442212]
[1771081956967,1.54812826,2084.1,2083.4,1.83496135]
[1771081959569,1.54812826,2084.1,2083.4,0.24007]
[1771081960961,1.54812826,2084.1,2083.0,1.4658994]
[1771081961169,6.2953396,2084.0,2083.0,1.4658994]
[1771081961367,1.4926107,2083.9,2083.0,1.4658994]
[1771081969674,1.4926107,2083.9,2083.2,1.4658994]
[1771081977984,1.4926107,2083.9,2083.1,1.7060094]
[1771081981077,1.4926107,2083.7,2082.3,0.00488562]
[1771081981282,1.60355381,2083.1,2082.3,0.00488562]
[1771081981483,1.60355381,2082.9,2082.3,0.00488562]
[1771081981683,1.60355381,2082.9,2082.3,1.50356015]
[1771081990186,1.60355381,2083.3,2082.3,1.50356015]
[1771081993893,1.60355381,2083.3,2082.5,1.49867453]
[1771081994491,1.60355381,2083.3,2082.7,1.49867453]
[1771081994691,1.60355381,2083.5,2082.7,1.49867453]
[1771081997392,1.60355381,2083.5,2082.6,0.24016]
[1771081997393,1.60355381,2083.5,2082.9,1.49867453]
[1771082001694,1.60355381,2083.5,2082.8,0.24014]
[1771082001892,1.60355381,2083.5,2082.8,1.73881453]
[1771082003001,1.60355381,2083.4,2082.8,1.73881453]
[1771082006201,1.60355381,2083.4,2082.3,1.26016726]
[1771082006202,1.25528164,2083.1,2082.6,1.49867453]
[1771082006402,1.60355381,2083.1,2082.6,1.49867453]
[1771082010204,2.85883545,2083.1,2082.6,1.49867453]
[1771082010503,1.60355381,2083.0,2082.6,1.49867453]
[1771082014008,1.25528164,2082.9,2082.4,1.50089691]
[1771082014208,1.59863732,2082.8,2082.4,1.50089691]
[1771082014805,1.59863732,2083.4,2082.6,1.50089691]
[1771082015203,1.59863732,2083.3,2082.6,1.50089691]
[1771082015804,1.59863732,2083.3,2082.8,1.50089691]
[1771082024017,1.5154649,2083.1,2082.7,0.24015]
[1771082024205,1.5154649,2082.9,2082.6,1.49568043]
[1771082024712,1.5154649,2083.1,2082.6,1.49568043]
[1771082025119,1.5154649,2083.1,2082.7,0.24015]
[1771082025312,1.5154649,2083.1,2082.7,1.73583043]
[1771082026816,1.5154649,2083.1,2082.7,0.24015]
[1771082027918,1.5154649,2083.1,2082.5,1.49568043]
[1771082029119,1.5154649,2082.9,2082.5,1.49568043]
[1771082029419,1.5154649,2082.9,2082.3,0.00488562]
[1771082029420,1.5154649,2082.9,2082.3,1.50056605]
[1771082030818,1.5154649,2083.1,2082.3,0.00488562]
[1771082031018,1.5154649,2082.9,2082.3,1.50056605]
[1771082034820,1.5154649,2082.9,2082.3,0.00488562]
[1771082035023,1.5154649,2082.7,2082.3,0.00488562]
[1771082035418,1.5154649,2082.7,2082.3,1.50056605]
[1771082038631,1.5154649,2082.7,2082.3,0.00488562]
[1771082038826,1.5154649,2082.8,2082.1,1.49568043]
[1771082039724,1.5154649,2082.8,2082.1,1.49960138]
[1771082042124,1.59665808,2083.0,2082.2,1.71109447]
[1771082042328,1.59665808,2083.2,2082.4,1.47088447]
[1771082042930,1.59665808,2083.2,2082.4,1.71107447]
[1771082043131,1.59665808,2083.2,2082.5,1.25528164]
[1771082043333,1.59665808,2083.6,2082.6,1.47088447]
[1771082043630,1.59665808,2083.4,2082.6,1.47088447]
[1771082047635,1.59665808,2083.4,2082.7,0.24015]
[1771082047837,1.59665808,2083.4,2082.8,1.47088447]
[1771082060253,1.59665808,2083.4,2082.7,1.71103447]
[1771082064549,1.25528164,2083.7,2082.7,1.71103447]
[1771082064748,1.59665808,2083.3,2082.7,0.24015]
[1771082065253,1.59665808,2083.3,2082.7,1.71103447]
[1771082065455,1.59665808,2083.3,2082.7,0.24015]
[1771082066854,1.59665808,2083.3,2082.6,1.47088447]
[1771082067153,1.59665808,2083.3,2082.3,1.47088447]
[1771082071060,1.59665808,2083.2,2082.2,1.71109447]
[1771082090171,7.83220841,2083.1,2082.2,1.71109447]
[1771082090370,1.52891832,2083.0,2082.2,1.71109447]
[1771082091971,1.52891832,2082.8,2081.7,1.52262992]
[1771082093078,1.52891832,2082.8,2081.7,1.76904405]
[1771082098482,1.52891832,2082.8,2082.2,1.52262992]
[1771082099284,1.52891832,2082.8,2082.1,1.76283992]
[1771082099481,1.52891832,2082.8,2081.8,1.52262992]
[1771082101180,1.52891832,2082.8,2082.0,1.52262992]
[1771082102178,1.52891832,2082.8,2081.9,1.81775832]
[1771082102380,1.46900891,2082.6,2081.9,0.24024]
[1771082102683,1.4746454,2082.6,2081.7,1.58366245]
[1771082102984,1.46900891,2082.3,2081.7,0.00614413]
[1771082103480,1.46900891,2082.3,2081.7,1.58366245]
[1771082103683,1.46900891,2082.3,2081.7,0.00614413]
[1771082104177,42.26900891,2082.3,2081.7,0.00614413]
[1771082104378,1.46900891,2082.2,2081.7,1.58366245]
[1771082105285,1.46900891,2082.2,2081.4,1.57751832]
[1771082106183,1.46900891,2082.2,2081.4,1.58244113]
[1771082107287,1.46900891,2082.2,2081.6,1.57751832]
[1771082108387,1.46900891,2082.4,2081.6,1.57751832]
[1771082110089,1.46900891,2082.5,2081.8,1.57751832]
[1771082110590,1.4746454,2082.6,2082.0,1.57751832]
[1771082110980,1.4746454,2082.6,2081.9,1.81775832]
[1771082113097,1.4746454,2082.6,2081.9,0.24024]
[1771082113991,1.46900891,2082.3,2081.5,1.57751832]
[1771082115296,1.46900891,2082.3,2081.4,1.82274113]
[1771082121504,1.46900891,2082.3,2081.4,0.24522281]
[1771082121706,1.46900891,2082.3,2081.4,0.00492281]
[1771082121902,1.46900891,2082.1,2081.4,0.00492281]
[1771082122104,1.46900891,2082.0,2081.0,1.57751832]
[1771082122504,1.46900891,2082.0,2081.2,1.55243309]
[1771082123006,1.46900891,2082.0,2081.2,1.55790523]
[1771082123897,1.46900891,2082.0,2081.4,1.55243309]
[1771082125510,1.46900891,2082.0,2081.2,1.55790523]
[1771082125703,1.46900891,2082.0,2081.2,0.00547214]
[1771082126107,40.8,2081.9,2081.2,0.00547214]
[1771082126408,1.55906553,2081.8,2081.2,0.00547214]
[1771082128707,1.55906553,2081.8,2080.8,1.55243309]
[1771082129712,1.55906553,2081.8,2080.8,1.55645346]
[1771082130211,1.55906553,2081.8,2080.8,0.00402037]
[1771082130513,1.55906553,2081.8,2080.8,1.55645346]
[1771082131111,1.54772142,2081.5,2079.9,1.97235051]
[1771082131313,1.54772142,2081.5,2080.2,1.59005667]
[1771082131613,1.54772142,2081.5,2080.4,1.59005667]
[1771082132215,1.54772142,2081.5,2080.4,1.59450277]
[1771082133213,1.54772142,2081.5,2080.6,1.59005667]
[1771082135415,1.54772142,2081.5,2080.5,0.24041]
[1771082135719,1.54772142,2081.5,2080.5,1.83046667]
[1771082136422,1.54772142,2081.5,2080.6,1.59005667]
[1771082137817,1.54772142,2081.5,2080.7,0.24038]
[1771082138119,1.54772142,2081.5,2080.8,1.59005667]
[1771082138621,1.54772142,2081.6,2081.0,1.59005667]
[1771082140614,1.54772142,2081.6,2080.8,1.53436654]
[1771082140814,1.54772142,2081.6,2080.5,1.53436654]
[1771082141011,1.54772142,2081.6,2080.7,1.53436654]
[1771082142517,1.54772142,2081.6,2080.6,1.77475654]
[1771082145316,1.54772142,2081.6,2081.1,1.53436654]
[1771082146117,40.8,2081.9,2081.1,1.53436654]
[1771082146317,40.8,2081.9,2081.3,1.53436654]
[1771082146622,1.56730322,2082.0,2081.3,1.53436654]
[1771082147022,1.56730322,2082.0,2081.4,1.53436654]
[1771082147624,1.56730322,2082.2,2081.6,1.53436654]
[1771082152535,1.56730322,2082.5,2081.8,1.53436654]
[1771082153934,1.56730322,2082.5,2082.0,1.53436654]
[1771082154131,1.56730322,2082.5,2082.0,1.53782219]
[1771082154632,1.56730322,2083.0,2082.2,1.53436654]
[1771082155321,18.19,2083.7,2082.4,1.53436654]
[1771082155322,1.56730322,2083.6,2082.4,1.53436654]
[1771082155525,1.56730322,2083.4,2082.4,1.53436654]
[1771082155730,1.56730322,2083.2,2082.4,1.53436654]
[1771082158329,1.57206684,2083.4,2082.6,1.53436654]
[1771082158833,0.00476362,2083.4,2082.9,1.53436654]
[1771082159533,1.56730322,2083.7,2082.9,1.53436654]
[1771082159832,1.56730322,2083.7,2083.1,1.53436654]
[1771082160631,1.57195817,2083.7,2083.1,1.53436654]
[1771082161733,1.5156064,2083.9,2083.1,1.53436654]
[1771082162831,1.51907543,2083.9,2083.1,1.53436654]
[1771082166044,1.51907543,2083.9,2083.0,1.70766589]
[1771082166338,1.51907543,2083.9,2082.8,1.46754589]
[1771082166540,1.51907543,2083.9,2082.7,1.46754589]
[1771082166743,1.51907543,2083.9,2082.9,1.46754589]
[1771082166937,1.51907543,2083.9,2083.3,1.46754589]
[1771082168032,1.51907543,2083.9,2083.2,1.70763589]
[1771082168240,1.51907543,2083.9,2083.2,0.24009]
[1771082168942,1.51907543,2083.9,2083.2,1.70763589]
[1771082172746,0.00346903,2083.9,2083.2,1.70763589]
[1771082174147,0.00346903,2083.9,2083.4,1.46754589]
[1771082174350,1.5156064,2084.3,2083.6,1.46754589]
[1771082174851,1.5156064,2084.9,2083.8,1.46754589]
[1771082175146,1.5156064,2084.9,2084.0,1.46754589]
[1771082175344,1.5156064,2084.7,2084.0,1.47131346]